Cogmind - Beta 10.1 @@@ ROGUE MODE // 2020.10.03 @ 23:32:08 Player: Andru7428 Result: Destroyed by D-53 Grenadier with Mini Grenade Launcher Performance ------------- Evolutions (0) 0 Regions Visited (2) 400 Robots Destroyed (38) 190 Value Destroyed (479) 479 Prototype IDs (0) 0 Alien Tech Used (0) 0 Bonus (-96) -96 TOTAL SCORE: 973 Bonus ------- Friendly Fire -96 Cogmind --------- Core Integrity 0/250 Matter 159/300 Energy 217/250 System Corruption 2% Temperature Cool (0) Movement Walking (180) Ox2 Location -10/Mines Parts ------- > --- POWER (1) -------- Ion Engine > --- PROPULSION (2) --- Aluminum Leg Aluminum Leg > --- UTILITY (2) ------ Large Storage Unit Large Storage Unit > --- WEAPON (2) ------- Light Cannon Grenade Launcher > --- INVENTORY (16) --- Ion Engine Aluminum Leg Wheel Wheel Large Matter Pod (150) Improved Terrain Scanner Bomb Drone Bay Grenade Launcher Datajack Hammer Peak State ------------ > --- POWER ------------ Ion Engine > --- PROPULSION ------- Aluminum Leg Aluminum Leg > --- UTILITY ---------- Large Storage Unit Large Storage Unit > --- WEAPON ----------- Beam Cannon Assault Rifle > --- INVENTORY -------- Ion Engine Aluminum Leg Aluminum Leg Aluminum Leg Wheel Wheel Large Matter Pod Improved Terrain Scanner Bomb Drone Bay Light Assault Rifle Light Assault Rifle Light Cannon Grenade Launcher Grenade Launcher Datajack [Rating: 9] Favorites ----------- Power Ion Engine Engine Ion Engine Propulsion Aluminum Leg Leg Aluminum Leg Utility Large Storage Unit Storage Large Storage Unit Weapon Assault Rifle Energy Gun EM Pulse Gun Energy Cannon Beam Cannon Ballistic Gun Assault Rifle Ballistic Cannon Light Cannon Launcher Grenade Launcher Build | -11 -10 -10 ------- Run | Scr Mat Min Slots Evolved . | . . . Power . | . . . Propulsion . | . . . Utility . | . . . Weapon . | . . . Parts Attached 20 | 6 7 7 Power 3 | 1 1 1 Engine 3 | 1 1 1 Core . | . . . Reactor . | . . . Propulsion 6 | 2 2 2 Treads . | . . . Leg 6 | 2 2 2 Wheel . | . . . Hover . | . . . Flight . | . . . Utility 3 | 1 2 . Device . | . . . Storage 3 | 1 2 . Processor . | . . . Hackware . | . . . Protection . | . . . Artifact . | . . . Weapon 8 | 2 2 4 Energy Gun 1 | . 1 . Energy Cannon 1 | . 1 . Ballistic Gun 3 | 2 . 1 Ballistic Cannon 1 | . . 1 Launcher 2 | . . 2 Special Weapon . | . . . Impact Weapon . | . . . Slashing Weapon . | . . . Piercing Weapon . | . . . Special Melee Weapon . | . . . Unidentified Prototypes . | . . . Parts Lost 8 | . 3 5 Power 1 | . 1 . Propulsion 3 | . 1 2 Utility . | . . . Weapon 4 | . 1 3 Highest Loss Streak 5 | . 1 5 Average Slot Usage (%) 99 | . 99 97 Engine 14 | . 14 14 Leg 27 | . 28 27 Storage 27 | . 27 28 Energy Gun 3 | . 3 . Energy Cannon 8 | . 7 12 Ballistic Gun 15 | . 16 11 Naked Turns . | . . . Heaviest Build 43 | 10 42 43 Greatest Support 20 | 20 20 20 Greatest Overweight (x) 4 | 2 4 3 Average Overweight (x) 1 | . 1 2 Largest Inventory Capacity 16 | 6 16 16 Average Capacity 14 | 5 15 16 Most Carried 16 | 6 16 16 Average Carried 12 | 4 13 15 Final Capacity 16 | 6 16 16 Final Carried 16 | 6 16 11 Class Distribution -------------------- 100% | Mutant Dominant Class ---------------- Mutant | -10/Materials Mutant | -10/Mines Resources | -11 -10 -10 ----------- Run | Scr Mat Min Matter Collected 658 | 237 414 7 Remotely . | . . . Salvage Created 763 | 43 685 35 Parts 41 | 3 38 . Haulers Intercepted 1 | . 1 . Recyclers Shooed 1 | . 1 . Parts Field Recycled . | . . . Retrieved Matter . | . . . Parts Self-Destructed . | . . . Prevented . | . . . Kills | -11 -10 -10 ------- Run | Scr Mat Min Combat Hostiles Destroyed 34 | . 16 18 Guns 8 | . 8 . Cannons 7 | . 7 . AOE 19 | . 1 18 Classes Destroyed 6 | 1 4 1 Tunneler 2 | 2 . . Hauler 1 | . 1 . Recycler 1 | . 1 . Swarmer 6 | . 5 1 Grunt 11 | . 11 . Assembled 17 | . . 17 Best Kill Streak 18 | 1 4 18 Combat Bots Only 18 | . 4 18 Max Kills in Single Turn 5 | 1 1 5 Gunslinging . | . . . Exploded 5 | . 1 5 Melee . | . . . Uniques/NPCs Destroyed . | . . . Combat | -11 -10 -10 -------- Run | Scr Mat Min Damage Taken 1312 | . 598 714 Core 259 | . 92 167 Absorbed by Shields . | . . . Core Remaining (%) 100 | 100 . . Volleys Fired 69 | 8 51 10 Largest 2 | 2 2 2 Hottest 80 | 40 80 55 Shots Fired 128 | 16 101 11 Gun 92 | 16 75 1 Cannon 27 | . 26 1 Launcher 9 | . . 9 Special . | . . . Kinetic 75 | 16 57 2 Thermal 26 | . 26 . Explosive 9 | . . 9 Electromagnetic 18 | . 18 . Robot Hit Streak 9 | 5 9 3 Robot Miss Streak 5 | 3 5 1 Penetration Max . | . . . Secondary Targets . | . . . Shots Hit Robots 72 | 9 58 5 Core Hits 78 | 3 30 45 Critical Hits . | . . . Critical Kills . | . . . Critical Parts Destroyed . | . . . Melee Attacks . | . . . Impact . | . . . Slashing . | . . . Piercing . | . . . Sneak Attacks . | . . . Combat Hostiles . | . . . Follow-up Attacks . | . . . Damage Inflicted 2072 | 101 832 1139 Guns 628 | 101 519 8 Cannons 241 | . 225 16 Explosions 1203 | . 88 1115 Melee . | . . . Ramming . | . . . Kinetic 537 | 101 412 24 Thermal 313 | . 313 . Explosive 1115 | . . 1115 Electromagnetic 107 | . 107 . Impact . | . . . Slashing . | . . . Piercing . | . . . Highest Corruption 2 | . 2 2 Average Corruption 2 | . 2 2 Corruption Purged . | . . . Effects 10 | . 8 2 Message Errors 1 | . 1 . Heat Flow Errors 4 | . 2 2 Energy Discharges 2 | . 2 . Data Loss (minor) 1 | . 1 . Targeting Errors 1 | . 1 . Weapon Failures 1 | . 1 . Overload Shots . | . . . Overflow Damage 8 | . . 8 Projectiles . | . . . Explosions 8 | . . 8 Melee . | . . . Knockbacks . | . . . Impact . | . . . Kinetic . | . . . Secondary . | . . . Self-Inflicted Damage 173 | . 39 134 Shots 5 | . 1 4 Rammed . | . . . Targets Rammed . | . . . Kicked . | . . . Crushed . | . . . Highest Temperature 247 | . 184 247 Average Temperature 62 | . 41 135 Received Heat Transfer 254 | . 174 80 Effects 1 | . . 1 Interference 1 | . . 1 Siege Activations . | . . . Robots Corrupted . | . . . Combat Hostiles . | . . . Parts Fried . | . . . Impact Corruptions . | . . . Robots Melted . | . . . Combat Hostiles . | . . . Parts Melted . | . . . Heat Transferred 581 | . 581 . Parts Sabotaged . | . . . Parts Stolen . | . . . Parts Stripped . | . . . Power Chain Reactions 1 | . 1 . Missiles Intercepted . | . . . Alert | -11 -10 -10 ------- Run | Scr Mat Min Peak Influence 163 | 10 163 30 Initial 18 | . 6 18 Average 62 | 3 74 17 Maximum Alert Level . | . . . Low Security (%) 100 | 100 100 100 Level 1 . | . . . Level 2 . | . . . Level 3 . | . . . Level 4 . | . . . Level 5 . | . . . High Security . | . . . Max Security . | . . . Squads Dispatched 5 | . 5 . Investigation 1 | . 1 . Extermination . | . . . Reinforcement 4 | . 4 . Assault . | . . . Garrison . | . . . Intercept . | . . . Construction Impeded . | . . . Haulers Reinforced . | . . . Stealth | -11 -10 -10 --------- Run | Scr Mat Min Distress Signals 5 | . 5 . Communications Jammed . | . . . Distress Signals . | . . . Times Spotted 50 | . 28 22 Peak Tracking Total 19 | . 4 19 Tactical Retreats 3 | . 2 1 Traps | -11 -10 -10 ------- Run | Scr Mat Min Traps Triggered 1 | . 1 . Indirectly . | . . . Trap Hack Attempts . | . . . Triggered . | . . . Disarmed . | . . . Reprogrammed . | . . . Reused . | . . . Traps Extracted . | . . . Installed . | . . . Triggered . | . . . Machines | -11 -10 -10 ---------- Run | Scr Mat Min Machines Disabled 1 | . 1 . Max in Single Turn 1 | . 1 . Machines Sabotaged . | . . . Garrisons Compromised . | . . . Overloaded Fab Kills . | . . . Fab Network Shutdowns . | . . . Hacking | -11 -10 -10 --------- Run | Scr Mat Min Machines Accessed 4 | . 3 1 Terminals 3 | . 3 . Fabricators . | . . . Repair Stations . | . . . Recycling Units . | . . . Scanalyzers . | . . . Garrison Access . | . . . Total Hacks 10 | . 9 1 Successful 6 | . 5 1 Failed 4 | . 4 . Catastrophic 1 | . 1 . Database Lockouts . | . . . Manual 9 | . 9 . Terminals 9 | . 9 . Fabricators . | . . . Repair Stations . | . . . Recycling Units . | . . . Scanalyzers . | . . . Garrison Access . | . . . Terminal Hacks 1 | . . 1 Open Door 1 | . . 1 Fabricator Hacks . | . . . Repair Station Hacks . | . . . Recycling Unit Hacks . | . . . Scanalyzer . | . . . Garrison Access Hacks . | . . . Unauthorized Hacks 5 | . 5 . Terminals 5 | . 5 . Track 2 | . 2 . Botnet 3 | . 3 . Fabricators . | . . . Repair Stations . | . . . Recycling Units . | . . . Scanalyzers . | . . . Garrison Access . | . . . Data Cores Recovered . | . . . Used . | . . . Hacking Detections 3 | . 3 . Full Trace Events . | . . . Feedback Events . | . . . Feedback Blocked . | . . . Robot Schematics Acquired . | . . . Robots Built . | . . . Matter . | . . . Time . | . . . Total Robot Build Rating . | . . . Part Schematics Acquired . | . . . Parts Built . | . . . Matter . | . . . Time . | . . . Total Part Build Rating . | . . . Parts Repaired . | . . . Time . | . . . Parts Recycled . | . . . Recycled Matter . | . . . Retrieved Matter . | . . . Retrieved Components . | . . . Parts Scanalyzed . | . . . Part Schematics Acquired . | . . . Parts Damaged . | . . . Bothacking | -11 -10 -10 ------------ Run | Scr Mat Min Used RIF Installer . | . . . Robots Hacked . | . . . Non-combat . | . . . Combat . | . . . Robot Hacks Applied . | . . . Relay Couplers Released . | . . . Robots Rewired . | . . . Allies Hacked . | . . . Hacks Repelled . | . . . Allies | -11 -10 -10 -------- Run | Scr Mat Min Total Allies . | . . . Largest Group . | . . . Highest-Rated Group . | . . . Highest-Rated Ally . | . . . Total Orders . | . . . Ally Attacks . | . . . Total Damage . | . . . Kills . | . . . Allies Corrupted . | . . . Allies Melted . | . . . Intel | -11 -10 -10 ------- Run | Scr Mat Min Robot Analysis Total . | . . . Derelict Logs Recovered 1 | . . 1 Drone Launches . | . . . Drone Recoveries . | . . . Exploration | -11 -10 -10 ------------- Run | Scr Mat Min Turns Passed 1548 | 116 1245 187 Spaces Moved 661 | 72 504 85 Core 17 | 17 . . Treads . | . . . Legs 644 | 55 504 85 Wheels . | . . . Hover . | . . . Flight . | . . . Fastest Speed 50 | 50 120 180 Average Speed 164 | 107 169 180 Slowest Speed 240 | 150 240 210 Overloaded Moves . | . . . Propulsion Burnouts . | . . . Robots Hopped . | . . . Cave-ins Triggered . | . . . Exploration Rate (%) 36 | 5 74 31 Regions Visited 2 Branch Regions 1 Pre-discovered Areas . | . . . Known Exits Taken . | . . . Unknown Exits Taken 2 | 1 1 . Scrap Searched 1 | . . 1 Spaces Dug . | . . . Terrain Destroyed 42 | . 2 40 Melee . | . . . Projectile . | . . . AOE 42 | . 2 40 Terrain Rammed . | . . . Walls Destroyed . | . . . Machines Disabled . | . . . Actions | -11 -10 -10 --------- Run | Scr Mat Min Total 994 | 93 792 109 Wait 218 | . 216 2 Move 659 | 71 503 85 Hop . | . . . Pick Up 22 | 7 13 2 Fast Attach 7 | 6 1 . Attach 8 | . 3 5 Detach . | . . . Swap 5 | . 3 2 Drop 6 | 1 2 3 Fire 69 | 8 51 10 Melee . | . . . Ram . | . . . Kick . | . . . Crush . | . . . Escape Stasis . | . . . Rewire . | . . . Trap . | . . . Miscellaneous . | . . . Route ------- -11/Scrapyard -10/Materials (discovered 4 exits: [*Mat x2] / *Min x2) -10/Mines History --------- Turn | Location | Event 15 | -11/Scrapyard | Discovered new exit (range 16) 117 | -11/Scrapyard | Entered Materials 154 | -10/Materials | Discovered new exit (range 15) 241 | -10/Materials | Discovered new exit (range 16) 307 | -10/Materials | Build established: Mutant 793 | -10/Materials | Discovered new exit (range 4) 998 | -10/Materials | Discovered new exit (range 7) 1362 | -10/Materials | Entered Mines 1405 | -10/Mines | Found the Drone Emporium 1414 | -10/Mines | Found Prototype Device 1480 | -10/Mines | Learned Materials machine intel 1515 | -10/Mines | Assembled infested the area 1520 | -10/Mines | Assisted by a Guerilla fighting off Assembled 1525 | -10/Mines | Core integrity fell below 50% 1544 | -10/Mines | Core integrity fell below 20% 1549 | -10/Mines | Destroyed by D-53 Grenadier with Mini Grenade Launcher Last Messages --------------- 01535_ as-23895 destroyed. 01536_ U-05 Engineer lays Concrete. 01536_ 0K-33D(h) destroyed. 01537_ as-59003 destroyed. 01537_ as-17887 destroyed. 01538_ The unstable cave ceiling collapses. 01538_ U-05 Engineer builds a Wall. 01539_ as-78740 destroyed. 01539_ as-91558 destroyed. 01539_ as-21544 destroyed. 01541_ Acquired 4 matter. 01542_ U-05 Engineer lays Concrete. 01542_ C-30 ARC bursts open, deploying its payload. 01542_ D-53 Grenadier unfolds itself. 01544_ The unstable cave ceiling collapses. 01544_ U-05 Engineer lays Concrete. 01547_ Lgt. Assault Rifle destroyed. 01547_ U-05 Engineer lays Concrete. 01548_ U-05 Engineer destroyed. 01549_ The unstable cave ceiling collapses. Map ----- +----------------------------------------------------+ | "##?????????? #????????????????????????????? | | "#??????????? #????????????????????????????? | | "#???????????? ##???????????????????????????? | | ###??????????? #???????????????????????????? | | ## ##??????????? ????????????????????????????? | | ##??????????? #????????????????????????????? | | #???????????# ### #????????????????????????? | | ############# #????????????????????????? | | ## [%] #????????????????????????????? | | ### ## ####### #????????????????????????????? | | ### ## #?????# #????????????????????????????? | | #?????# #????????????????????????????? | | #########??#### #????????????????????????????? | | ##?????????## #????????????????????????????? | | ##??????????# """ ##???????????????????????????? | | #??????????## """ #?????????????##????????????? | | #####????### """ #???????????# #???????????? | | #???## """ #??????????# ???????????? | | #???# ##?????????# ???????????? | | #???# ###????????## #???????????? | | ^ #???# ##???####### %#????????????? | | # #???## ##??## #????????????? | | # #????## #### ####?????????? | | #?????### ## #?????????? | | #???????## d d [ #????????? | | #????????## ### @ #????????? | | #?????????####?# #????????? | | #??????????????# ????????? | | #??????????????## ?????????? | | #???????????????# # % ?????????? | | #???????????????###### # # ??????????? | | ######?????????????????????###? ##??????????? | | ????????????????????????????????######???????????? | | ?????????????????????????????????????????????????? | | | | | | | | | | | | | | | | | | | | | | | | | | | | | | | | | +----------------------------------------------------+ Best States ------------- Heat Dissipation 25 Energy Generation 10 Energy Capacity 250 Matter Stores 300 Matter Capacity 300 Sight Range 16 Terrain Scan Density 10 Evasion (%) 50 Item Schematics ----------------- None Robot Schematics ------------------ None Fabricated ------------ Nothing Alien Tech Used ----------------- None Achievements -------------- None Challenges ------------ None Game ------ Seed KineticGravitonTearclaws Manual? 0 Play Time 00:13:32 Cumulative 66.1 hours Start 2020.10.03 @ 23:20:07 End 2020.10.03 @ 23:32:08 Sessions 1 Manual Loads 0 Difficulty Rogue Special Mode None Game No. 60 Rogue 60 Adventurer 0 Explorer 0 Win Type - Total 0 Types 0/0/0/0/0/0/0/0/0 Lore% 48 Gallery% 52 Achievement% 43 Wizard Run 0 Options --------- ASCII 0 Keyboard 1 Movement Numpad Keybinds 0 Fullscreen 2 Font 18/Smallcaps Map View 76x50 Tactical HUD 1 Map Filters NONE Filters NONE Steam 1 RUN: fbe1a7d0-2c60-4146-b5dc-48c11bba1efb